[Event "Titled Tuesday Blitz February 14 Early 2023"]
[White "Goncalves, Davi Sulzbacher"]
[Black "Marosi, Levente"]
[WhiteFideId "2154510"]
[BlackFideId "747181"]
[WhiteElo "2282"]
[BlackElo "2303"]
[Result "1/2-1/2"]
[Round "11"]
[TimeControl "180+2"]
[Date "2023.02.14"]
[WhiteClock "0:00:54"]
[BlackClock "0:00:16"]

1. Nf3 {[%clk 0:03:00]}  Nf6 {[%clk 0:02:59]} 2. g3 {[%clk 0:03:01]}  g6 {[%clk 0:03:00]} 3. Bg2 {[%clk 0:03:02]}  Bg7 {[%clk 0:03:00]} 4. O-O {[%clk 0:03:03]}  O-O {[%clk 0:03:01]} 5. d4 {[%clk 0:03:04]}  d6 {[%clk 0:03:02]} 6. c4 {[%clk 0:03:04]}  Nbd7 {[%clk 0:03:03]} 7. Nc3 {[%clk 0:03:05]}  e5 {[%clk 0:03:03]} 8. Qc2 {[%clk 0:03:04]}  Re8 {[%clk 0:03:03]} 9. b3 {[%clk 0:03:03]}  a5 {[%clk 0:03:01]} 10. Bb2 {[%clk 0:03:02]}  exd4 {[%clk 0:02:58]} 11. Nxd4 {[%clk 0:03:02]}  Nc5 {[%clk 0:02:59]} 12. Ndb5 {[%clk 0:03:00]}  c6 {[%clk 0:02:53]} 13. Nd4 {[%clk 0:02:58]}  Qb6 {[%clk 0:02:45]} 14. Rfd1 {[%clk 0:02:41]}  a4 {[%clk 0:02:40]} 15. Rab1 {[%clk 0:02:28]}  axb3 {[%clk 0:02:36]} 16. axb3 {[%clk 0:02:29]}  Nfd7 {[%clk 0:02:27]} 17. e3 {[%clk 0:02:27]}  Na6 {[%clk 0:01:41]} 18. Ne4 {[%clk 0:02:16]}  Nb4 {[%clk 0:01:35]} 19. Qd2 {[%clk 0:02:15]}  Nc5 {[%clk 0:01:22]} 20. Nxd6 {[%clk 0:01:59]}  Rd8 {[%clk 0:01:21]} 21. Nxc8 {[%clk 0:01:33]}  Raxc8 {[%clk 0:01:22]} 22. Bc3 {[%clk 0:01:30]}  Nba6 {[%clk 0:01:22]} 23. b4 {[%clk 0:01:28]}  Na4 {[%clk 0:01:00]} 24. c5 {[%clk 0:01:25]}  Qc7 {[%clk 0:00:56]} 25. Ba1 {[%clk 0:01:24]}  Ra8 {[%clk 0:00:35]} 26. Qc2 {[%clk 0:01:20]}  Nb8 {[%clk 0:00:27]} 27. b5 {[%clk 0:01:10]}  Qe7 {[%clk 0:00:19]} 28. bxc6 {[%clk 0:01:01]}  bxc6 {[%clk 0:00:19]} 29. Nxc6 {[%clk 0:01:01]}  Nxc6 {[%clk 0:00:12]} 30. Bxc6 {[%clk 0:01:01]}  Qxc5 {[%clk 0:00:05]} 31. Bxa4 {[%clk 0:00:59]}  Rxd1+ {[%clk 0:00:03]} 32. Rxd1 {[%clk 0:00:58]}  Qxc2 {[%clk 0:00:03]} 33. Bxc2 {[%clk 0:00:58]}  Rxa1 {[%clk 0:00:04]} 34. Rxa1 {[%clk 0:00:57]}  Bxa1 {[%clk 0:00:04]} 35. Kf1 {[%clk 0:00:57]}  f5 {[%clk 0:00:05]} 36. Ke2 {[%clk 0:00:57]}  Kg7 {[%clk 0:00:06]} 37. h3 {[%clk 0:00:56]}  Kf6 {[%clk 0:00:07]} 38. g4 {[%clk 0:00:56]}  Be5 {[%clk 0:00:07]} 39. gxf5 {[%clk 0:00:56]}  gxf5 {[%clk 0:00:08]} 40. f4 {[%clk 0:00:57]}  Bd6 {[%clk 0:00:08]} 41. Bb3 {[%clk 0:00:53]}  h6 {[%clk 0:00:08]} 42. Bd5 {[%clk 0:00:52]}  Bc5 {[%clk 0:00:08]} 43. Kd3 {[%clk 0:00:52]}  Bb6 {[%clk 0:00:09]} 44. Bf3 {[%clk 0:00:53]}  Ba7 {[%clk 0:00:09]} 45. Bd1 {[%clk 0:00:53]}  Bb6 {[%clk 0:00:09]} 46. Ke2 {[%clk 0:00:54]}  Bc5 {[%clk 0:00:09]} 47. Bc2 {[%clk 0:00:54]}  Bb6 {[%clk 0:00:10]} 48. Kf3 {[%clk 0:00:55]}  Bc5 {[%clk 0:00:10]} 49. h4 {[%clk 0:00:53]}  Bb6 {[%clk 0:00:10]} 50. h5 {[%clk 0:00:53]}  Bc5 {[%clk 0:00:10]} 51. Bd3 {[%clk 0:00:53]}  Bb6 {[%clk 0:00:11]} 52. Ke2 {[%clk 0:00:53]}  Bc5 {[%clk 0:00:11]} 53. Bc4 {[%clk 0:00:54]}  Bb6 {[%clk 0:00:12]} 54. Bg8 {[%clk 0:00:54]}  Bc5 {[%clk 0:00:12]} 55. Bh7 {[%clk 0:00:54]}  Bb6 {[%clk 0:00:13]} 56. Bg6 {[%clk 0:00:54]}  Bc5 {[%clk 0:00:13]} 57. Kd3 {[%clk 0:00:55]}  Bb6 {[%clk 0:00:14]} 58. e4 {[%clk 0:00:55]}  fxe4+ {[%clk 0:00:14]} 59. Kxe4 {[%clk 0:00:55]}  Bc7 {[%clk 0:00:15]} 60. Kf3 {[%clk 0:00:55]}  Bd6 {[%clk 0:00:15]} 61. Ke4 {[%clk 0:00:55]}  Bc7 {[%clk 0:00:16]} 62. f5 {[%clk 0:00:55]}  Be5 {[%clk 0:00:16]} 63. Kd5 {[%clk 0:00:55]}  Bf4 {[%clk 0:00:16]} 64. Ke4 {[%clk 0:00:54]} 1/2-1/2


[Site "https://www.chess.com"]

[Event "Titled Tuesday Blitz February 14 Early 2023"]
[White "Fernandez Garcia, Gumersindo"]
[Black "Florescu, Codrut-Constantin"]
[WhiteFideId "24516740"]
[BlackFideId "1202200"]
[WhiteElo "2160"]
[BlackElo "2259"]
[Result "1-0"]
[Round "11"]
[TimeControl "180+2"]
[Date "2023.02.14"]
[WhiteClock "0:00:14"]
[BlackClock "0:01:18"]

1. d4 {[%clk 0:03:00]}  Nf6 {[%clk 0:02:59]} 2. c4 {[%clk 0:03:00]}  e6 {[%clk 0:02:59]} 3. Nf3 {[%clk 0:03:00]}  Bb4+ {[%clk 0:02:59]} 4. Bd2 {[%clk 0:02:59]}  a5 {[%clk 0:02:59]} 5. g3 {[%clk 0:02:58]}  b6 {[%clk 0:02:59]} 6. Bg2 {[%clk 0:02:58]}  Bb7 {[%clk 0:03:00]} 7. O-O {[%clk 0:02:58]}  O-O {[%clk 0:02:59]} 8. Nc3 {[%clk 0:02:48]}  d6 {[%clk 0:02:56]} 9. Bg5 {[%clk 0:02:40]}  Bxc3 {[%clk 0:02:55]} 10. bxc3 {[%clk 0:02:40]}  Nbd7 {[%clk 0:02:54]} 11. e3 {[%clk 0:02:27]}  h6 {[%clk 0:02:52]} 12. Bxf6 {[%clk 0:02:27]}  Nxf6 {[%clk 0:02:53]} 13. Rb1 {[%clk 0:02:20]}  Be4 {[%clk 0:02:50]} 14. Rb2 {[%clk 0:02:20]}  Qe7 {[%clk 0:02:51]} 15. Qd2 {[%clk 0:02:16]}  Rad8 {[%clk 0:02:48]} 16. Rc1 {[%clk 0:02:02]}  Qd7 {[%clk 0:02:47]} 17. Ne1 {[%clk 0:02:00]}  Bxg2 {[%clk 0:02:47]} 18. Nxg2 {[%clk 0:02:01]}  Qc6 {[%clk 0:02:47]} 19. Qe2 {[%clk 0:02:00]}  e5 {[%clk 0:02:45]} 20. Rb5 {[%clk 0:01:53]}  Rfe8 {[%clk 0:02:41]} 21. Qd3 {[%clk 0:01:38]}  Nh7 {[%clk 0:02:38]} 22. h4 {[%clk 0:01:36]}  Nf6 {[%clk 0:02:37]} 23. Rb2 {[%clk 0:01:27]}  Qf3 {[%clk 0:02:24]} 24. Qe2 {[%clk 0:01:23]}  Qf5 {[%clk 0:02:22]} 25. Qc2 {[%clk 0:01:22]}  Qe6 {[%clk 0:02:21]} 26. d5 {[%clk 0:01:17]}  Qh3 {[%clk 0:02:20]} 27. Ne1 {[%clk 0:01:01]}  Ng4 {[%clk 0:02:18]} 28. Nf3 {[%clk 0:00:47]}  e4 {[%clk 0:02:13]} 29. Nd4 {[%clk 0:00:48]}  Ne5 {[%clk 0:02:01]} 30. Qe2 {[%clk 0:00:44]}  Nd3 {[%clk 0:01:59]} 31. Rcb1 {[%clk 0:00:38]}  Nxb2 {[%clk 0:01:59]} 32. Rxb2 {[%clk 0:00:39]}  g6 {[%clk 0:01:57]} 33. Rb1 {[%clk 0:00:37]}  Kg7 {[%clk 0:01:57]} 34. Rd1 {[%clk 0:00:35]}  Re5 {[%clk 0:01:56]} 35. Nc6 {[%clk 0:00:35]}  Rde8 {[%clk 0:01:55]} 36. Nxe5 {[%clk 0:00:35]}  Rxe5 {[%clk 0:01:56]} 37. Rd4 {[%clk 0:00:36]}  f5 {[%clk 0:01:50]} 38. Qf1 {[%clk 0:00:36]}  Qg4 {[%clk 0:01:44]} 39. Qd1 {[%clk 0:00:36]}  Qxd1+ {[%clk 0:01:42]} 40. Rxd1 {[%clk 0:00:36]}  g5 {[%clk 0:01:43]} 41. hxg5 {[%clk 0:00:36]}  hxg5 {[%clk 0:01:43]} 42. Kg2 {[%clk 0:00:36]}  Re8 {[%clk 0:01:42]} 43. Rh1 {[%clk 0:00:36]}  Rh8 {[%clk 0:01:42]} 44. Rxh8 {[%clk 0:00:29]}  Kxh8 {[%clk 0:01:42]} 45. g4 {[%clk 0:00:29]}  f4 {[%clk 0:01:41]} 46. Kf1 {[%clk 0:00:28]}  Kg7 {[%clk 0:01:40]} 47. a4 {[%clk 0:00:28]}  f3 {[%clk 0:01:31]} 48. Ke1 {[%clk 0:00:26]}  Kf6 {[%clk 0:01:31]} 49. Kd2 {[%clk 0:00:26]}  Ke7 {[%clk 0:01:31]} 50. Kc2 {[%clk 0:00:27]}  c6 {[%clk 0:01:28]} 51. Kb3 {[%clk 0:00:24]}  Kd7 {[%clk 0:01:27]} 52. Kb2 {[%clk 0:00:24]}  Kc7 {[%clk 0:01:28]} 53. Kb3 {[%clk 0:00:24]}  Kb7 {[%clk 0:01:25]} 54. Kb2 {[%clk 0:00:24]}  Ka6 {[%clk 0:01:19]} 55. dxc6 {[%clk 0:00:17]}  Ka7 {[%clk 0:01:19]} 56. Kb3 {[%clk 0:00:17]}  Kb8 {[%clk 0:01:19]} 57. c5 {[%clk 0:00:17]}  dxc5 {[%clk 0:01:15]} 58. Kc4 {[%clk 0:00:18]}  Kc7 {[%clk 0:01:14]} 59. Kb5 {[%clk 0:00:18]}  c4 {[%clk 0:01:13]} 60. Kxc4 {[%clk 0:00:16]}  Kxc6 {[%clk 0:01:14]} 61. Kd4 {[%clk 0:00:16]}  b5 {[%clk 0:01:14]} 62. axb5+ {[%clk 0:00:16]}  Kxb5 {[%clk 0:01:14]} 63. Kxe4 {[%clk 0:00:15]}  a4 {[%clk 0:01:12]} 64. Kd3 {[%clk 0:00:15]}  a3 {[%clk 0:01:13]} 65. Kc2 {[%clk 0:00:16]}  Kc4 {[%clk 0:01:13]} 66. e4 {[%clk 0:00:15]}  a2 {[%clk 0:01:13]} 67. Kb2 {[%clk 0:00:16]}  Kd3 {[%clk 0:01:12]} 68. e5 {[%clk 0:00:15]}  Ke2 {[%clk 0:01:13]} 69. e6 {[%clk 0:00:16]}  Kxf2 {[%clk 0:01:14]} 70. e7 {[%clk 0:00:16]}  Kg2 {[%clk 0:01:15]} 71. e8=Q {[%clk 0:00:16]}  f2 {[%clk 0:01:16]} 72. Qe2 {[%clk 0:00:16]}  Kg1 {[%clk 0:01:15]} 73. Qe3 {[%clk 0:00:13]}  Kg2 {[%clk 0:01:14]} 74. Qe4+ {[%clk 0:00:13]}  Kg1 {[%clk 0:01:13]} 75. Qe3 {[%clk 0:00:10]}  Kg2 {[%clk 0:01:13]} 76. Qe2 {[%clk 0:00:09]}  Kg1 {[%clk 0:01:13]} 77. c4 {[%clk 0:00:09]}  f1=Q {[%clk 0:01:12]} 78. Qxf1+ {[%clk 0:00:10]}  Kxf1 {[%clk 0:01:13]} 79. c5 {[%clk 0:00:10]}  Kf2 {[%clk 0:01:14]} 80. c6 {[%clk 0:00:11]}  Kf3 {[%clk 0:01:15]} 81. c7 {[%clk 0:00:11]}  Kxg4 {[%clk 0:01:16]} 82. c8=Q+ {[%clk 0:00:12]}  Kf3 {[%clk 0:01:17]} 83. Qc1 {[%clk 0:00:12]}  g4 {[%clk 0:01:18]} 84. Qg1 {[%clk 0:00:12]}  g3 {[%clk 0:01:18]} 85. Kxa2 {[%clk 0:00:13]}  g2 {[%clk 0:01:18]} 86. Kb2 {[%clk 0:00:14]} 1-0


[Site "https://www.chess.com"]

[Event "Titled Tuesday Blitz February 14 Early 2023"]
[White "Zacurdajev, Dmitry"]
[Black "Tologon tegin, Semetei"]
[WhiteFideId "4196309"]
[BlackFideId "13800574"]
[WhiteElo "2273"]
[BlackElo "2372"]
[Result "0-1"]
[Round "11"]
[TimeControl "180+2"]
[Date "2023.02.14"]
[WhiteClock "0:00:20"]
[BlackClock "0:00:21"]

1. d4 {[%clk 0:03:00]}  Nf6 {[%clk 0:02:55]} 2. c4 {[%clk 0:03:01]}  e6 {[%clk 0:02:54]} 3. Nc3 {[%clk 0:03:01]}  d5 {[%clk 0:02:51]} 4. Nf3 {[%clk 0:03:01]}  Nbd7 {[%clk 0:02:51]} 5. Bf4 {[%clk 0:02:59]}  Bb4 {[%clk 0:02:48]} 6. e3 {[%clk 0:02:58]}  c5 {[%clk 0:02:47]} 7. a3 {[%clk 0:02:49]}  Bxc3+ {[%clk 0:02:46]} 8. bxc3 {[%clk 0:02:50]}  Qa5 {[%clk 0:02:45]} 9. Qb3 {[%clk 0:02:38]}  O-O {[%clk 0:02:42]} 10. Bd3 {[%clk 0:02:25]}  b6 {[%clk 0:02:20]} 11. O-O {[%clk 0:02:05]}  Ba6 {[%clk 0:02:19]} 12. Rfd1 {[%clk 0:01:55]}  Rac8 {[%clk 0:02:16]} 13. Rac1 {[%clk 0:01:37]}  Rfd8 {[%clk 0:01:44]} 14. Bf1 {[%clk 0:01:24]}  dxc4 {[%clk 0:01:41]} 15. Bxc4 {[%clk 0:01:16]}  Bxc4 {[%clk 0:01:41]} 16. Qxc4 {[%clk 0:01:17]}  cxd4 {[%clk 0:01:33]} 17. Qxd4 {[%clk 0:01:18]}  Qxa3 {[%clk 0:01:21]} 18. Ra1 {[%clk 0:01:08]}  Qxc3 {[%clk 0:01:21]} 19. Qxc3 {[%clk 0:01:01]}  Rxc3 {[%clk 0:01:22]} 20. Rxa7 {[%clk 0:01:02]}  Rdc8 {[%clk 0:01:17]} 21. h3 {[%clk 0:00:52]}  Nc5 {[%clk 0:00:24]} 22. Ne5 {[%clk 0:00:43]}  Rf8 {[%clk 0:00:22]} 23. Rb1 {[%clk 0:00:39]}  Nd5 {[%clk 0:00:22]} 24. Nc6 {[%clk 0:00:28]}  Nxf4 {[%clk 0:00:19]} 25. exf4 {[%clk 0:00:29]}  Nd3 {[%clk 0:00:19]} 26. Rxb6 {[%clk 0:00:26]}  Nxf4 {[%clk 0:00:18]} 27. Ne7+ {[%clk 0:00:23]}  Kh8 {[%clk 0:00:18]} 28. Rba6 {[%clk 0:00:22]}  h6 {[%clk 0:00:17]} 29. Kh2 {[%clk 0:00:19]}  Rc2 {[%clk 0:00:17]} 30. Ra2 {[%clk 0:00:16]}  Rxa2 {[%clk 0:00:16]} 31. Rxa2 {[%clk 0:00:17]}  Nd5 {[%clk 0:00:16]} 32. Nxd5 {[%clk 0:00:17]}  exd5 {[%clk 0:00:17]} 33. Rd2 {[%clk 0:00:18]}  Rd8 {[%clk 0:00:16]} 34. Kg3 {[%clk 0:00:18]}  Kg8 {[%clk 0:00:15]} 35. Kf4 {[%clk 0:00:19]}  f6 {[%clk 0:00:16]} 36. Kf5 {[%clk 0:00:19]}  Kf7 {[%clk 0:00:16]} 37. Ra2 {[%clk 0:00:18]}  g6+ {[%clk 0:00:17]} 38. Kf4 {[%clk 0:00:19]}  Ke6 {[%clk 0:00:18]} 39. Ra6+ {[%clk 0:00:19]}  Rd6 {[%clk 0:00:18]} 40. Ra8 {[%clk 0:00:20]}  h5 {[%clk 0:00:19]} 41. h4 {[%clk 0:00:19]}  d4 {[%clk 0:00:18]} 42. Ra2 {[%clk 0:00:17]}  d3 {[%clk 0:00:18]} 43. Rd2 {[%clk 0:00:18]}  Rd4+ {[%clk 0:00:18]} 44. Ke3 {[%clk 0:00:17]}  Rxh4 {[%clk 0:00:18]} 45. Rxd3 {[%clk 0:00:17]}  Rg4 {[%clk 0:00:19]} 46. Kf3 {[%clk 0:00:18]}  g5 {[%clk 0:00:18]} 47. Ra3 {[%clk 0:00:18]}  Kf5 {[%clk 0:00:19]} 48. Ra5+ {[%clk 0:00:18]}  Kg6 {[%clk 0:00:19]} 49. Ra6 {[%clk 0:00:19]}  Rf4+ {[%clk 0:00:19]} 50. Kg3 {[%clk 0:00:19]}  h4+ {[%clk 0:00:20]} 51. Kh3 {[%clk 0:00:20]}  Rxf2 {[%clk 0:00:21]} 52. Ra3 {[%clk 0:00:20]}  Re2 {[%clk 0:00:21]} 53. Ra4 {[%clk 0:00:20]}  Re5 {[%clk 0:00:21]} 54. Rb4 {[%clk 0:00:20]}  Re6 {[%clk 0:00:21]} 55. Ra4 {[%clk 0:00:21]}  f5 {[%clk 0:00:22]} 56. Rb4 {[%clk 0:00:21]}  Re3+ {[%clk 0:00:22]} 57. Kh2 {[%clk 0:00:21]}  Re4 {[%clk 0:00:22]} 58. Rb6+ {[%clk 0:00:19]}  Kh5 {[%clk 0:00:22]} 59. Rb8 {[%clk 0:00:20]}  Kg4 {[%clk 0:00:20]} 60. Rb3 {[%clk 0:00:20]}  Kf4 {[%clk 0:00:19]} 61. Rf3+ {[%clk 0:00:20]}  Ke5 {[%clk 0:00:19]} 62. Ra3 {[%clk 0:00:21]}  g4 {[%clk 0:00:20]} 63. Rb3 {[%clk 0:00:20]}  Kf4 {[%clk 0:00:19]} 64. Rb8 {[%clk 0:00:18]}  Re1 {[%clk 0:00:18]} 65. Rb4+ {[%clk 0:00:18]}  Kg5 {[%clk 0:00:19]} 66. g3 {[%clk 0:00:15]}  Re2+ {[%clk 0:00:18]} 67. Kg1 {[%clk 0:00:16]}  hxg3 {[%clk 0:00:19]} 68. Rb3 {[%clk 0:00:17]}  f4 {[%clk 0:00:19]} 69. Rb5+ {[%clk 0:00:17]}  Kh4 {[%clk 0:00:19]} 70. Rb8 {[%clk 0:00:17]}  f3 {[%clk 0:00:20]} 71. Rh8+ {[%clk 0:00:18]}  Kg5 {[%clk 0:00:20]} 72. Rg8+ {[%clk 0:00:19]}  Kf5 {[%clk 0:00:21]} 73. Rf8+ {[%clk 0:00:20]}  Ke4 {[%clk 0:00:21]} 74. Re8+ {[%clk 0:00:21]}  Kd3 {[%clk 0:00:21]} 75. Rd8+ {[%clk 0:00:21]}  Kc4 {[%clk 0:00:21]} 76. Rc8+ {[%clk 0:00:21]}  Kd5 {[%clk 0:00:22]} 77. Rg8 {[%clk 0:00:20]}  Re1# {[%clk 0:00:21]} 0-1


[Site "https://www.chess.com"]

[Event "Titled Tuesday Blitz February 14 Early 2023"]
[White "Kanyamarala, Trisha"]
[Black "Shapiro, Viktor"]
[WhiteFideId "45004722"]
[BlackFideId "4175700"]
[WhiteElo "2278"]
[BlackElo "2192"]
[Result "1-0"]
[Round "11"]
[TimeControl "180+2"]
[Date "2023.02.14"]
[WhiteClock "0:01:03"]
[BlackClock "0:00:36"]

1. d4 {[%clk 0:03:00]}  Nf6 {[%clk 0:03:00]} 2. c4 {[%clk 0:02:55]}  e6 {[%clk 0:02:59]} 3. Nc3 {[%clk 0:02:55]}  Bb4 {[%clk 0:02:58]} 4. Nf3 {[%clk 0:02:55]}  b6 {[%clk 0:02:57]} 5. Bd2 {[%clk 0:02:51]}  Bb7 {[%clk 0:02:57]} 6. e3 {[%clk 0:02:51]}  O-O {[%clk 0:02:57]} 7. Bd3 {[%clk 0:02:51]}  d5 {[%clk 0:02:56]} 8. O-O {[%clk 0:02:50]}  a6 {[%clk 0:02:55]} 9. cxd5 {[%clk 0:02:50]}  exd5 {[%clk 0:02:55]} 10. Ne5 {[%clk 0:02:49]}  Bd6 {[%clk 0:02:47]} 11. f4 {[%clk 0:02:48]}  c5 {[%clk 0:02:47]} 12. Be1 {[%clk 0:02:46]}  Nc6 {[%clk 0:02:44]} 13. Bc2 {[%clk 0:02:44]}  cxd4 {[%clk 0:02:43]} 14. exd4 {[%clk 0:02:44]}  Nxd4 {[%clk 0:02:42]} 15. Bh4 {[%clk 0:02:29]}  Nxc2 {[%clk 0:02:41]} 16. Qxc2 {[%clk 0:02:29]}  d4 {[%clk 0:02:37]} 17. Ne2 {[%clk 0:02:27]}  Rc8 {[%clk 0:02:27]} 18. Qd3 {[%clk 0:02:21]}  Bc5 {[%clk 0:02:21]} 19. Ng4 {[%clk 0:02:11]}  Qd5 {[%clk 0:02:06]} 20. Nxf6+ {[%clk 0:02:04]}  gxf6 {[%clk 0:02:07]} 21. Qg3+ {[%clk 0:02:04]}  Qg5 {[%clk 0:01:54]} 22. fxg5 {[%clk 0:01:56]}  d3+ {[%clk 0:01:51]} 23. Kh1 {[%clk 0:01:56]}  f5 {[%clk 0:01:49]} 24. Qxd3 {[%clk 0:01:50]}  Be4 {[%clk 0:01:45]} 25. Qg3 {[%clk 0:01:50]}  Rfd8 {[%clk 0:01:31]} 26. g6 {[%clk 0:01:50]}  Rd2 {[%clk 0:01:24]} 27. gxh7+ {[%clk 0:01:38]}  Kxh7 {[%clk 0:01:24]} 28. Bf6 {[%clk 0:01:32]}  Bf8 {[%clk 0:01:05]} 29. Qh4+ {[%clk 0:01:27]}  Bh6 {[%clk 0:01:05]} 30. Qh5 {[%clk 0:01:23]}  Rc7 {[%clk 0:00:57]} 31. Bg5 {[%clk 0:01:16]}  Rd6 {[%clk 0:00:51]} 32. Ng3 {[%clk 0:01:13]}  Rg6 {[%clk 0:00:38]} 33. Nxe4 {[%clk 0:01:04]}  fxe4 {[%clk 0:00:38]} 34. Bxh6 {[%clk 0:01:04]}  Rxh6 {[%clk 0:00:36]} 35. Rxf7+ {[%clk 0:01:03]}  Rxf7 {[%clk 0:00:36]} 36. Qxf7+ {[%clk 0:01:03]} 1-0


[Site "https://www.chess.com"]

[Event "Titled Tuesday Blitz February 14 Early 2023"]
[White "Rian, Kapriaga"]
[Black "Kopczynski, Michal"]
[WhiteFideId "7103263"]
[BlackFideId "1124200"]
[WhiteElo "2089"]
[BlackElo "2225"]
[Result "1/2-1/2"]
[Round "11"]
[TimeControl "180+2"]
[Date "2023.02.14"]
[WhiteClock "0:00:04"]
[BlackClock "0:00:35"]

1. d4 {[%clk 0:03:00]}  Nf6 {[%clk 0:03:00]} 2. Nf3 {[%clk 0:03:00]}  g6 {[%clk 0:03:00]} 3. Bg5 {[%clk 0:02:59]}  Bg7 {[%clk 0:03:01]} 4. Nbd2 {[%clk 0:02:59]}  d5 {[%clk 0:03:00]} 5. e3 {[%clk 0:02:57]}  O-O {[%clk 0:03:01]} 6. Be2 {[%clk 0:02:56]}  c5 {[%clk 0:03:01]} 7. c3 {[%clk 0:02:56]}  Nc6 {[%clk 0:03:02]} 8. O-O {[%clk 0:02:55]}  h6 {[%clk 0:03:02]} 9. Bh4 {[%clk 0:02:54]}  g5 {[%clk 0:03:03]} 10. Bg3 {[%clk 0:02:54]}  Nh5 {[%clk 0:03:03]} 11. Be5 {[%clk 0:02:47]}  Nxe5 {[%clk 0:02:54]} 12. Nxe5 {[%clk 0:02:46]}  Bxe5 {[%clk 0:02:48]} 13. dxe5 {[%clk 0:02:38]}  Ng7 {[%clk 0:02:48]} 14. f4 {[%clk 0:02:36]}  Bf5 {[%clk 0:02:43]} 15. Bg4 {[%clk 0:02:25]}  e6 {[%clk 0:02:35]} 16. Qe2 {[%clk 0:02:17]}  Qb6 {[%clk 0:02:23]} 17. b3 {[%clk 0:02:08]}  c4 {[%clk 0:02:12]} 18. b4 {[%clk 0:02:06]}  Bxg4 {[%clk 0:02:12]} 19. Qxg4 {[%clk 0:02:04]}  Qxe3+ {[%clk 0:02:12]} 20. Rf2 {[%clk 0:01:55]}  gxf4 {[%clk 0:02:06]} 21. Nf3 {[%clk 0:01:41]}  Kh7 {[%clk 0:01:59]} 22. Re1 {[%clk 0:01:39]}  Qxc3 {[%clk 0:01:59]} 23. Qxf4 {[%clk 0:01:29]}  Nf5 {[%clk 0:01:59]} 24. g4 {[%clk 0:01:13]}  Rg8 {[%clk 0:01:58]} 25. Kh1 {[%clk 0:01:12]}  Nh4 {[%clk 0:01:45]} 26. Rc1 {[%clk 0:00:41]}  Qa3 {[%clk 0:00:52]} 27. Nxh4 {[%clk 0:00:34]}  Rxg4 {[%clk 0:00:51]} 28. Qxf7+ {[%clk 0:00:23]}  Rg7 {[%clk 0:00:51]} 29. Qxg7+ {[%clk 0:00:16]}  Kxg7 {[%clk 0:00:52]} 30. Rg1+ {[%clk 0:00:15]}  Kh8 {[%clk 0:00:39]} 31. Ng6+ {[%clk 0:00:15]}  Kg7 {[%clk 0:00:39]} 32. Nf8+ {[%clk 0:00:08]}  Kh8 {[%clk 0:00:37]} 33. Ng6+ {[%clk 0:00:07]}  Kh7 {[%clk 0:00:36]} 34. Nf8+ {[%clk 0:00:04]}  Kh8 {[%clk 0:00:35]} 35. Ng6+ {[%clk 0:00:04]} 1/2-1/2


[Site "https://www.chess.com"]

[Event "Titled Tuesday Blitz February 14 Early 2023"]
[White "Martic, Ivan"]
[Black "Lucassen, Mickey"]
[WhiteFideId "929301"]
[BlackFideId "12919110"]
[WhiteElo "2301"]
[BlackElo "2023"]
[Result "0-1"]
[Round "11"]
[TimeControl "180+2"]
[Date "2023.02.14"]
[WhiteClock "0:00:05"]
[BlackClock "0:00:09"]

1. c4 {[%clk 0:03:00]}  Nf6 {[%clk 0:02:58]} 2. Nc3 {[%clk 0:03:00]}  g6 {[%clk 0:02:58]} 3. g3 {[%clk 0:02:58]}  Bg7 {[%clk 0:02:58]} 4. Bg2 {[%clk 0:02:57]}  O-O {[%clk 0:02:58]} 5. d4 {[%clk 0:02:56]}  d6 {[%clk 0:02:53]} 6. Nf3 {[%clk 0:02:56]}  Nbd7 {[%clk 0:02:52]} 7. O-O {[%clk 0:02:56]}  e5 {[%clk 0:02:53]} 8. e4 {[%clk 0:02:56]}  Re8 {[%clk 0:02:51]} 9. h3 {[%clk 0:02:55]}  exd4 {[%clk 0:02:51]} 10. Nxd4 {[%clk 0:02:56]}  Nc5 {[%clk 0:02:51]} 11. Re1 {[%clk 0:02:56]}  c6 {[%clk 0:02:51]} 12. Bf4 {[%clk 0:02:48]}  Nh5 {[%clk 0:02:47]} 13. Be3 {[%clk 0:02:48]}  Nf6 {[%clk 0:02:45]} 14. Qc2 {[%clk 0:02:48]}  a5 {[%clk 0:02:41]} 15. Rad1 {[%clk 0:02:47]}  Qc7 {[%clk 0:02:41]} 16. Ndb5 {[%clk 0:02:38]}  cxb5 {[%clk 0:02:29]} 17. Nxb5 {[%clk 0:02:39]}  Qe7 {[%clk 0:02:28]} 18. Nxd6 {[%clk 0:02:37]}  Ne6 {[%clk 0:02:17]} 19. e5 {[%clk 0:02:28]}  Nd7 {[%clk 0:02:12]} 20. f4 {[%clk 0:02:27]}  Ndc5 {[%clk 0:02:03]} 21. Rd5 {[%clk 0:02:12]}  Na6 {[%clk 0:01:56]} 22. a3 {[%clk 0:02:02]}  Nec7 {[%clk 0:01:51]} 23. Rd2 {[%clk 0:01:56]}  Rd8 {[%clk 0:01:45]} 24. Red1 {[%clk 0:01:55]}  Ne8 {[%clk 0:01:34]} 25. Nxc8 {[%clk 0:01:44]}  Raxc8 {[%clk 0:01:30]} 26. Rxd8 {[%clk 0:01:43]}  Rxd8 {[%clk 0:01:30]} 27. Rxd8 {[%clk 0:01:43]}  Qxd8 {[%clk 0:01:31]} 28. Bxb7 {[%clk 0:01:43]}  Nec7 {[%clk 0:01:26]} 29. Qd2 {[%clk 0:01:36]}  Qb8 {[%clk 0:01:23]} 30. Bc6 {[%clk 0:01:29]}  Bf8 {[%clk 0:01:17]} 31. Kg2 {[%clk 0:01:26]}  Qb3 {[%clk 0:01:14]} 32. Bd5 {[%clk 0:01:19]}  Bc5 {[%clk 0:01:05]} 33. Bf2 {[%clk 0:00:49]}  a4 {[%clk 0:00:58]} 34. g4 {[%clk 0:00:43]}  Bxf2 {[%clk 0:00:43]} 35. Kxf2 {[%clk 0:00:36]}  Nc5 {[%clk 0:00:43]} 36. Kg2 {[%clk 0:00:33]}  Nd3 {[%clk 0:00:36]} 37. f5 {[%clk 0:00:32]}  Qxb2 {[%clk 0:00:27]} 38. Qxb2 {[%clk 0:00:30]}  Nxb2 {[%clk 0:00:28]} 39. Bc6 {[%clk 0:00:27]}  Na6 {[%clk 0:00:20]} 40. e6 {[%clk 0:00:24]}  fxe6 {[%clk 0:00:20]} 41. fxe6 {[%clk 0:00:25]}  Kf8 {[%clk 0:00:21]} 42. Bb5 {[%clk 0:00:24]}  Nc5 {[%clk 0:00:20]} 43. g5 {[%clk 0:00:20]}  Ke7 {[%clk 0:00:21]} 44. h4 {[%clk 0:00:20]}  Kxe6 {[%clk 0:00:20]} 45. Kf3 {[%clk 0:00:21]}  Nbd3 {[%clk 0:00:15]} 46. Kg4 {[%clk 0:00:19]}  Ne5+ {[%clk 0:00:15]} 47. Kf4 {[%clk 0:00:19]}  Kd6 {[%clk 0:00:11]} 48. Ke3 {[%clk 0:00:14]}  Nc6 {[%clk 0:00:08]} 49. Kf4 {[%clk 0:00:12]}  Ne7 {[%clk 0:00:09]} 50. Kg4 {[%clk 0:00:12]}  Nf5 {[%clk 0:00:08]} 51. h5 {[%clk 0:00:12]}  Ne3+ {[%clk 0:00:09]} 52. Kf4 {[%clk 0:00:11]}  Nc2 {[%clk 0:00:09]} 53. h6 {[%clk 0:00:11]}  Nd4 {[%clk 0:00:09]} 54. Be8 {[%clk 0:00:10]}  Nce6+ {[%clk 0:00:09]} 55. Kg4 {[%clk 0:00:10]}  Nc2 {[%clk 0:00:05]} 56. Bxa4 {[%clk 0:00:10]}  Nxa3 {[%clk 0:00:04]} 57. Be8 {[%clk 0:00:09]}  Nxc4 {[%clk 0:00:05]} 58. Kh4 {[%clk 0:00:09]}  Ne5 {[%clk 0:00:05]} 59. Ba4 {[%clk 0:00:07]}  Nf3+ {[%clk 0:00:06]} 60. Kg4 {[%clk 0:00:07]}  Nfxg5 {[%clk 0:00:06]} 61. Bc2 {[%clk 0:00:06]}  Nf7 {[%clk 0:00:07]} 62. Bxg6 {[%clk 0:00:05]}  hxg6 {[%clk 0:00:07]} 63. h7 {[%clk 0:00:05]}  Ke7 {[%clk 0:00:06]} 64. Kh4 {[%clk 0:00:05]}  Kf6 {[%clk 0:00:07]} 65. Kg4 {[%clk 0:00:03]}  Kg7 {[%clk 0:00:07]} 66. h8=Q+ {[%clk 0:00:04]}  Kxh8 {[%clk 0:00:07]} 67. Kh4 {[%clk 0:00:04]}  Kg7 {[%clk 0:00:08]} 68. Kg4 {[%clk 0:00:05]}  Kf6 {[%clk 0:00:09]} 0-1


[Site "https://www.chess.com"]